[Event "November 21 Late 2023"]
[Site "https://www.chess.com"]
[Date "2023.11.21"]
[Round "3"]
[White "Quirke, Jeffrey"]
[Black "Prithu Gupta"]
[Result "0-1"]
[Board "110"]
[TimeControl "180+1"]
[WhiteFideId "2013029"]
[BlackFideId "46618546"]
[WhiteElo "2239"]
[BlackElo "2344"]
[WhiteTeam "USA"]
[BlackTeam "IND"]
[WhiteClock "0:00:00"]
[BlackClock "0:00:52"]

1. e4 {[%clk 0:02:57]}  e5 {[%clk 0:02:58]} 2. Nf3 {[%clk 0:02:55]}  Nc6 {[%clk 0:02:58]} 3. Nc3 {[%clk 0:02:53]}  Nf6 {[%clk 0:02:58]} 4. h3 {[%clk 0:02:53]}  Bb4 {[%clk 0:02:56]} 5. Bd3 {[%clk 0:02:48]}  O-O {[%clk 0:02:56]} 6. O-O {[%clk 0:02:45]}  Bxc3 {[%clk 0:02:54]} 7. dxc3 {[%clk 0:02:43]}  h6 {[%clk 0:02:55]} 8. Re1 {[%clk 0:02:42]}  d6 {[%clk 0:02:55]} 9. c4 {[%clk 0:02:38]}  Nd7 {[%clk 0:02:53]} 10. b3 {[%clk 0:02:33]}  Nc5 {[%clk 0:02:53]} 11. Bb2 {[%clk 0:02:28]}  Nxd3 {[%clk 0:02:53]} 12. cxd3 {[%clk 0:02:28]}  f5 {[%clk 0:02:53]} 13. exf5 {[%clk 0:01:41]}  Bxf5 {[%clk 0:02:54]} 14. d4 {[%clk 0:01:41]}  e4 {[%clk 0:02:51]} 15. Nd2 {[%clk 0:01:41]}  d5 {[%clk 0:02:50]} 16. cxd5 {[%clk 0:01:37]}  Qxd5 {[%clk 0:02:51]} 17. Nc4 {[%clk 0:01:22]}  Rad8 {[%clk 0:02:30]} 18. Ne3 {[%clk 0:01:21]}  Qf7 {[%clk 0:02:26]} 19. d5 {[%clk 0:01:08]}  Be6 {[%clk 0:02:22]} 20. Qc2 {[%clk 0:00:49]}  Bxd5 {[%clk 0:02:16]} 21. Nxd5 {[%clk 0:00:43]}  Rxd5 {[%clk 0:02:15]} 22. Rxe4 {[%clk 0:00:39]}  Rg5 {[%clk 0:01:53]} 23. Rg4 {[%clk 0:00:31]}  Rxg4 {[%clk 0:01:49]} 24. hxg4 {[%clk 0:00:32]}  Nb4 {[%clk 0:01:47]} 25. Qd2 {[%clk 0:00:20]}  Nd5 {[%clk 0:01:44]} 26. Qd4 {[%clk 0:00:16]}  Nf4 {[%clk 0:01:22]} 27. Re1 {[%clk 0:00:15]}  b6 {[%clk 0:01:20]} 28. Qc4 {[%clk 0:00:06]}  Qxc4 {[%clk 0:01:18]} 29. bxc4 {[%clk 0:00:07]}  Nd3 {[%clk 0:01:17]} 30. Re2 {[%clk 0:00:05]}  Nxb2 {[%clk 0:01:17]} 31. Rxb2 {[%clk 0:00:05]}  Rf4 {[%clk 0:01:17]} 32. f3 {[%clk 0:00:03]}  Rxc4 {[%clk 0:01:17]} 33. Rd2 {[%clk 0:00:04]}  c5 {[%clk 0:01:14]} 34. Rd7 {[%clk 0:00:04]}  Ra4 {[%clk 0:01:14]} 35. Kh2 {[%clk 0:00:03]}  Rxa2 {[%clk 0:01:14]} 36. Kg3 {[%clk 0:00:04]}  a5 {[%clk 0:01:04]} 37. f4 {[%clk 0:00:03]}  c4 {[%clk 0:01:03]} 38. g5 {[%clk 0:00:04]}  hxg5 {[%clk 0:01:03]} 39. fxg5 {[%clk 0:00:04]}  c3 {[%clk 0:01:03]} 40. g6 {[%clk 0:00:05]}  Kf8 {[%clk 0:01:01]} 41. Rc7 {[%clk 0:00:04]}  c2 {[%clk 0:00:58]} 42. Kf4 {[%clk 0:00:02]}  c1=Q+ {[%clk 0:00:51]} 43. Rxc1 {[%clk 0:00:00]}  Rxg2 {[%clk 0:00:52]} 0-1

[Event "November 21 Late 2023"]
[Site "https://www.chess.com"]
[Date "2023.11.21"]
[Round "3"]
[White "Van Dael, Siem"]
[Black "Vila Dupla, Aurelio"]
[Result "1-0"]
[Board "111"]
[TimeControl "180+1"]
[WhiteFideId "1049771"]
[BlackFideId "2203383"]
[WhiteElo "2252"]
[BlackElo "2009"]
[WhiteTeam "NED"]
[BlackTeam "ESP"]
[WhiteClock "0:02:15"]
[BlackClock "0:00:29"]

1. e4 {[%clk 0:03:00]}  c5 {[%clk 0:02:58]} 2. Nf3 {[%clk 0:03:01]}  d6 {[%clk 0:02:58]} 3. d4 {[%clk 0:03:02]}  cxd4 {[%clk 0:02:58]} 4. Nxd4 {[%clk 0:03:02]}  Nf6 {[%clk 0:02:58]} 5. Nc3 {[%clk 0:03:03]}  g6 {[%clk 0:02:58]} 6. Be3 {[%clk 0:03:03]}  Bg7 {[%clk 0:02:59]} 7. f3 {[%clk 0:03:04]}  O-O {[%clk 0:02:59]} 8. Qd2 {[%clk 0:03:04]}  Nc6 {[%clk 0:02:59]} 9. O-O-O {[%clk 0:03:05]}  Nxd4 {[%clk 0:02:59]} 10. Bxd4 {[%clk 0:03:05]}  Be6 {[%clk 0:03:00]} 11. h4 {[%clk 0:03:00]}  Qa5 {[%clk 0:03:00]} 12. Qg5 {[%clk 0:02:59]}  Qxg5+ {[%clk 0:02:45]} 13. hxg5 {[%clk 0:02:59]}  Nd7 {[%clk 0:02:46]} 14. Bxg7 {[%clk 0:02:56]}  Kxg7 {[%clk 0:02:46]} 15. g3 {[%clk 0:02:45]}  Rfc8 {[%clk 0:02:40]} 16. Bh3 {[%clk 0:02:40]}  Bxh3 {[%clk 0:02:38]} 17. Rxh3 {[%clk 0:02:41]}  Nb6 {[%clk 0:02:09]} 18. Rdh1 {[%clk 0:02:39]}  Rh8 {[%clk 0:02:09]} 19. a4 {[%clk 0:02:37]}  a5 {[%clk 0:02:02]} 20. b3 {[%clk 0:02:37]}  Rac8 {[%clk 0:02:01]} 21. Kd2 {[%clk 0:02:36]}  Rc5 {[%clk 0:02:01]} 22. f4 {[%clk 0:02:35]}  f6 {[%clk 0:02:00]} 23. gxf6+ {[%clk 0:02:29]}  exf6 {[%clk 0:02:00]} 24. Ne2 {[%clk 0:02:29]}  Rc7 {[%clk 0:01:47]} 25. Nd4 {[%clk 0:02:29]}  Re7 {[%clk 0:01:47]} 26. Re1 {[%clk 0:02:26]}  d5 {[%clk 0:01:44]} 27. e5 {[%clk 0:02:25]}  fxe5 {[%clk 0:01:33]} 28. fxe5 {[%clk 0:02:25]}  Rhe8 {[%clk 0:01:33]} 29. e6 {[%clk 0:02:26]}  Rf8 {[%clk 0:01:21]} 30. Re2 {[%clk 0:02:23]}  Rf6 {[%clk 0:01:11]} 31. c3 {[%clk 0:02:22]}  h5 {[%clk 0:01:11]} 32. Reh2 {[%clk 0:02:21]}  Rf8 {[%clk 0:00:45]} 33. g4 {[%clk 0:02:20]}  Rh8 {[%clk 0:00:45]} 34. gxh5 {[%clk 0:02:20]}  Rxh5 {[%clk 0:00:45]} 35. Rxh5 {[%clk 0:02:20]}  gxh5 {[%clk 0:00:46]} 36. Rxh5 {[%clk 0:02:21]}  Kg6 {[%clk 0:00:46]} 37. Rh1 {[%clk 0:02:20]}  Nc8 {[%clk 0:00:46]} 38. Rg1+ {[%clk 0:02:20]}  Kf6 {[%clk 0:00:45]} 39. Rf1+ {[%clk 0:02:19]}  Ke5 {[%clk 0:00:45]} 40. Rf5+ {[%clk 0:02:18]}  Kd6 {[%clk 0:00:43]} 41. Rf8 {[%clk 0:02:18]}  Kc7 {[%clk 0:00:42]} 42. Nb5+ {[%clk 0:02:15]}  Kb8 {[%clk 0:00:37]} 43. Nd6 {[%clk 0:02:14]}  Rxe6 {[%clk 0:00:37]} 44. Rxc8+ {[%clk 0:02:14]}  Ka7 {[%clk 0:00:37]} 45. Nb5+ {[%clk 0:02:15]}  Kb6 {[%clk 0:00:35]} 46. c4 {[%clk 0:02:15]}  dxc4 {[%clk 0:00:35]} 47. bxc4 {[%clk 0:02:15]}  Rh6 {[%clk 0:00:29]} 48. c5+ {[%clk 0:02:15]} 1-0

[Event "November 21 Late 2023"]
[Site "https://www.chess.com"]
[Date "2023.11.21"]
[Round "3"]
[White "The_Straightforward_Rook"]
[Black "ilya2700"]
[Result "0-1"]
[Board "112"]
[TimeControl "180+1"]
[WhiteElo "2530"]
[BlackElo "2221"]
[WhiteClock "0:00:44"]
[BlackClock "0:00:46"]

1. e4 {[%clk 0:03:00]}  c5 {[%clk 0:02:59]} 2. c3 {[%clk 0:03:00]}  e6 {[%clk 0:02:59]} 3. d4 {[%clk 0:03:01]}  d5 {[%clk 0:02:59]} 4. e5 {[%clk 0:03:01]}  Nc6 {[%clk 0:02:59]} 5. Nf3 {[%clk 0:03:01]}  g6 {[%clk 0:02:55]} 6. Be2 {[%clk 0:02:58]}  cxd4 {[%clk 0:02:54]} 7. cxd4 {[%clk 0:02:58]}  Bg7 {[%clk 0:02:55]} 8. h4 {[%clk 0:02:56]}  h6 {[%clk 0:02:46]} 9. Nc3 {[%clk 0:02:52]}  Nge7 {[%clk 0:02:46]} 10. Bf4 {[%clk 0:02:47]}  Qb6 {[%clk 0:02:38]} 11. Qd2 {[%clk 0:02:43]}  Nf5 {[%clk 0:02:36]} 12. Rd1 {[%clk 0:02:30]}  Bd7 {[%clk 0:02:30]} 13. g4 {[%clk 0:02:29]}  Nfe7 {[%clk 0:02:24]} 14. Nb5 {[%clk 0:02:30]}  Nc8 {[%clk 0:02:17]} 15. Kf1 {[%clk 0:02:14]}  Nxe5 {[%clk 0:02:02]} 16. Bxe5 {[%clk 0:01:52]}  Bxe5 {[%clk 0:01:58]} 17. Nxe5 {[%clk 0:01:52]}  Bxb5 {[%clk 0:01:58]} 18. h5 {[%clk 0:01:46]}  g5 {[%clk 0:01:56]} 19. Kg2 {[%clk 0:01:44]}  Nd6 {[%clk 0:01:52]} 20. Bf3 {[%clk 0:01:39]}  O-O-O {[%clk 0:01:47]} 21. Rhe1 {[%clk 0:01:32]}  Kb8 {[%clk 0:01:40]} 22. b3 {[%clk 0:01:31]}  Rhf8 {[%clk 0:01:31]} 23. Kg1 {[%clk 0:01:31]}  f5 {[%clk 0:01:27]} 24. Ng6 {[%clk 0:01:30]}  Rf7 {[%clk 0:01:16]} 25. Rxe6 {[%clk 0:01:29]}  fxg4 {[%clk 0:01:06]} 26. Bxg4 {[%clk 0:01:26]}  Bd7 {[%clk 0:01:00]} 27. Ne5 {[%clk 0:00:57]}  Bxe6 {[%clk 0:00:51]} 28. Bxe6 {[%clk 0:00:44]}  Ne4 {[%clk 0:00:46]} 0-1

[Event "November 21 Late 2023"]
[Site "https://www.chess.com"]
[Date "2023.11.21"]
[Round "3"]
[White "Andreassen, Lars"]
[Black "ciutadella"]
[Result "0-1"]
[Board "113"]
[TimeControl "180+1"]
[WhiteFideId "1504878"]
[WhiteElo "2119"]
[BlackElo "2529"]
[WhiteTeam "NOR"]
[WhiteClock "0:00:04"]
[BlackClock "0:00:21"]

1. d4 {[%clk 0:03:00]}  Nf6 {[%clk 0:02:59]} 2. Nf3 {[%clk 0:03:01]}  e6 {[%clk 0:02:59]} 3. Bg5 {[%clk 0:03:01]}  h6 {[%clk 0:02:58]} 4. Bh4 {[%clk 0:03:00]}  b6 {[%clk 0:02:55]} 5. Nc3 {[%clk 0:02:57]}  Bb7 {[%clk 0:02:44]} 6. Qd3 {[%clk 0:02:55]}  d5 {[%clk 0:02:36]} 7. Ne5 {[%clk 0:02:52]}  Be7 {[%clk 0:02:32]} 8. f3 {[%clk 0:02:50]}  O-O {[%clk 0:02:29]} 9. e4 {[%clk 0:02:49]}  dxe4 {[%clk 0:02:15]} 10. fxe4 {[%clk 0:02:49]}  c5 {[%clk 0:02:15]} 11. O-O-O {[%clk 0:02:43]}  cxd4 {[%clk 0:02:13]} 12. Qxd4 {[%clk 0:02:43]}  Qxd4 {[%clk 0:02:12]} 13. Rxd4 {[%clk 0:02:44]}  Bc5 {[%clk 0:02:02]} 14. Rc4 {[%clk 0:02:20]}  Nbd7 {[%clk 0:01:41]} 15. Nxd7 {[%clk 0:01:57]}  Nxd7 {[%clk 0:01:41]} 16. b4 {[%clk 0:01:52]}  Be3+ {[%clk 0:01:32]} 17. Kb1 {[%clk 0:01:47]}  Rac8 {[%clk 0:01:31]} 18. Nb5 {[%clk 0:01:33]}  Rxc4 {[%clk 0:01:16]} 19. Bxc4 {[%clk 0:01:34]}  Ne5 {[%clk 0:01:14]} 20. Bd3 {[%clk 0:01:29]}  Nxd3 {[%clk 0:01:10]} 21. cxd3 {[%clk 0:01:30]}  Ba6 {[%clk 0:01:10]} 22. a4 {[%clk 0:01:27]}  g5 {[%clk 0:01:10]} 23. Bg3 {[%clk 0:01:10]}  Rd8 {[%clk 0:01:08]} 24. Rd1 {[%clk 0:01:09]}  Bxb5 {[%clk 0:01:08]} 25. axb5 {[%clk 0:01:08]}  Rd4 {[%clk 0:01:09]} 26. Be1 {[%clk 0:01:07]}  Bf4 {[%clk 0:01:04]} 27. Kc2 {[%clk 0:01:06]}  Bxh2 {[%clk 0:01:00]} 28. Ra1 {[%clk 0:01:05]}  Rd7 {[%clk 0:00:53]} 29. g3 {[%clk 0:01:01]}  Bg1 {[%clk 0:00:46]} 30. Kd2 {[%clk 0:00:57]}  Bd4 {[%clk 0:00:45]} 31. Ra3 {[%clk 0:00:55]}  f5 {[%clk 0:00:42]} 32. Ke2 {[%clk 0:00:53]}  Rc7 {[%clk 0:00:40]} 33. Kd1 {[%clk 0:00:47]}  Kf7 {[%clk 0:00:39]} 34. Bd2 {[%clk 0:00:45]}  Kg6 {[%clk 0:00:39]} 35. Be1 {[%clk 0:00:41]}  Kh5 {[%clk 0:00:39]} 36. Ra2 {[%clk 0:00:32]}  Kg4 {[%clk 0:00:36]} 37. Rh2 {[%clk 0:00:32]}  h5 {[%clk 0:00:36]} 38. Re2 {[%clk 0:00:28]}  Kf3 {[%clk 0:00:32]} 39. exf5 {[%clk 0:00:25]}  exf5 {[%clk 0:00:33]} 40. Rh2 {[%clk 0:00:23]}  Be3 {[%clk 0:00:30]} 41. Bd2 {[%clk 0:00:18]}  Bxd2 {[%clk 0:00:30]} 42. Kxd2 {[%clk 0:00:18]}  Rh7 {[%clk 0:00:22]} 43. d4 {[%clk 0:00:13]}  Kxg3 {[%clk 0:00:23]} 44. Re2 {[%clk 0:00:12]}  h4 {[%clk 0:00:22]} 45. d5 {[%clk 0:00:11]}  h3 {[%clk 0:00:22]} 46. Re3+ {[%clk 0:00:10]}  Kf4 {[%clk 0:00:21]} 47. Kd3 {[%clk 0:00:04]}  h2 {[%clk 0:00:21]} 0-1

[Event "November 21 Late 2023"]
[Site "https://www.chess.com"]
[Date "2023.11.21"]
[Round "3"]
[White "D`Arruda, Ricardo D."]
[Black "seasidesunset"]
[Result "1-0"]
[Board "114"]
[TimeControl "180+1"]
[WhiteFideId "100692"]
[WhiteElo "2527"]
[BlackElo "2182"]
[WhiteTeam "ARG"]
[WhiteClock "0:00:36"]
[BlackClock "0:00:03"]

1. d4 {[%clk 0:03:00]}  Nf6 {[%clk 0:02:59]} 2. Nf3 {[%clk 0:03:00]}  g6 {[%clk 0:02:59]} 3. Nc3 {[%clk 0:02:59]}  d5 {[%clk 0:02:59]} 4. Bg5 {[%clk 0:02:59]}  Bg7 {[%clk 0:02:59]} 5. Bxf6 {[%clk 0:02:59]}  Bxf6 {[%clk 0:02:59]} 6. e4 {[%clk 0:02:59]}  dxe4 {[%clk 0:02:59]} 7. Nxe4 {[%clk 0:03:00]}  Bg7 {[%clk 0:03:00]} 8. Bc4 {[%clk 0:03:00]}  O-O {[%clk 0:02:59]} 9. O-O {[%clk 0:02:58]}  Nc6 {[%clk 0:02:39]} 10. c3 {[%clk 0:02:57]}  Bg4 {[%clk 0:02:38]} 11. Re1 {[%clk 0:02:48]}  e5 {[%clk 0:02:14]} 12. d5 {[%clk 0:02:26]}  Na5 {[%clk 0:02:06]} 13. Bf1 {[%clk 0:02:25]}  f5 {[%clk 0:02:02]} 14. Nc5 {[%clk 0:02:24]}  e4 {[%clk 0:01:39]} 15. Ne6 {[%clk 0:02:23]}  Bxf3 {[%clk 0:01:10]} 16. gxf3 {[%clk 0:02:20]}  Qh4 {[%clk 0:01:09]} 17. Nxg7 {[%clk 0:02:03]}  Kxg7 {[%clk 0:01:10]} 18. b4 {[%clk 0:02:01]}  Nc6 {[%clk 0:00:36]} 19. dxc6 {[%clk 0:02:01]}  Rad8 {[%clk 0:00:36]} 20. Qc2 {[%clk 0:01:36]}  Qg5+ {[%clk 0:00:29]} 21. Kh1 {[%clk 0:01:34]}  Rd2 {[%clk 0:00:30]} 22. Qc1 {[%clk 0:01:33]}  Qf4 {[%clk 0:00:13]} 23. Rd1 {[%clk 0:01:10]}  Qxf3+ {[%clk 0:00:09]} 24. Bg2 {[%clk 0:01:11]}  Rxd1+ {[%clk 0:00:09]} 25. Qxd1 {[%clk 0:01:11]}  Qxc3 {[%clk 0:00:09]} 26. cxb7 {[%clk 0:01:09]}  Rb8 {[%clk 0:00:09]} 27. Rc1 {[%clk 0:01:08]}  Qe5 {[%clk 0:00:07]} 28. Qd7+ {[%clk 0:01:08]}  Kh6 {[%clk 0:00:07]} 29. Qxc7 {[%clk 0:01:07]}  Qb2 {[%clk 0:00:04]} 30. h4 {[%clk 0:00:52]}  Rxb7 {[%clk 0:00:04]} 31. Qf4+ {[%clk 0:00:47]}  Kg7 {[%clk 0:00:05]} 32. Rc7+ {[%clk 0:00:46]}  Rxc7 {[%clk 0:00:05]} 33. Qxc7+ {[%clk 0:00:47]}  Kh6 {[%clk 0:00:06]} 34. Qxa7 {[%clk 0:00:45]}  Qb1+ {[%clk 0:00:06]} 35. Kh2 {[%clk 0:00:44]}  Qxb4 {[%clk 0:00:06]} 36. Qe3+ {[%clk 0:00:43]}  Kg7 {[%clk 0:00:07]} 37. a3 {[%clk 0:00:42]}  Qa4 {[%clk 0:00:07]} 38. Qc3+ {[%clk 0:00:41]}  Kh6 {[%clk 0:00:07]} 39. Qb4 {[%clk 0:00:41]}  Qc2 {[%clk 0:00:07]} 40. Qd4 {[%clk 0:00:37]}  Qa2 {[%clk 0:00:04]} 41. a4 {[%clk 0:00:37]}  g5 {[%clk 0:00:04]} 42. Qf6+ {[%clk 0:00:35]}  Kh5 {[%clk 0:00:03]} 43. Qxg5# {[%clk 0:00:36]} 1-0

[Event "November 21 Late 2023"]
[Site "https://www.chess.com"]
[Date "2023.11.21"]
[Round "3"]
[White "Tologon tegin, Semetei"]
[Black "Fernandez Hernandez, Gerardo"]
[Result "1-0"]
[Board "115"]
[TimeControl "180+1"]
[WhiteFideId "13800574"]
[BlackFideId "2207400"]
[WhiteElo "2258"]
[BlackElo "2142"]
[WhiteTeam "KGZ"]
[BlackTeam "ESP"]
[WhiteClock "0:01:39"]
[BlackClock "0:00:00"]

1. d4 {[%clk 0:02:54]}  Nf6 {[%clk 0:02:59]} 2. c4 {[%clk 0:02:55]}  c5 {[%clk 0:02:59]} 3. d5 {[%clk 0:02:54]}  b5 {[%clk 0:02:59]} 4. cxb5 {[%clk 0:02:54]}  a6 {[%clk 0:02:59]} 5. bxa6 {[%clk 0:02:55]}  g6 {[%clk 0:02:59]} 6. Nc3 {[%clk 0:02:56]}  Bg7 {[%clk 0:02:59]} 7. e4 {[%clk 0:02:55]}  O-O {[%clk 0:02:59]} 8. Nf3 {[%clk 0:02:55]}  Qa5 {[%clk 0:02:53]} 9. Bd2 {[%clk 0:02:55]}  Bxa6 {[%clk 0:02:46]} 10. Bxa6 {[%clk 0:02:49]}  Qxa6 {[%clk 0:02:42]} 11. Qe2 {[%clk 0:02:49]}  e6 {[%clk 0:02:39]} 12. Qxa6 {[%clk 0:02:45]}  Nxa6 {[%clk 0:02:40]} 13. a3 {[%clk 0:02:45]}  exd5 {[%clk 0:02:38]} 14. exd5 {[%clk 0:02:45]}  Rfe8+ {[%clk 0:02:37]} 15. Be3 {[%clk 0:02:40]}  Nb4 {[%clk 0:02:29]} 16. Kd2 {[%clk 0:02:40]}  Nbxd5 {[%clk 0:02:23]} 17. Nxd5 {[%clk 0:02:40]}  Nxd5 {[%clk 0:02:23]} 18. Rab1 {[%clk 0:02:39]}  Nxe3 {[%clk 0:02:18]} 19. fxe3 {[%clk 0:02:40]}  Bh6 {[%clk 0:02:14]} 20. Rhe1 {[%clk 0:02:39]}  d5 {[%clk 0:02:14]} 21. Rbc1 {[%clk 0:02:36]}  Rab8 {[%clk 0:01:46]} 22. Rc2 {[%clk 0:02:30]}  d4 {[%clk 0:01:45]} 23. Kd3 {[%clk 0:02:28]}  Rb3+ {[%clk 0:01:23]} 24. Kc4 {[%clk 0:02:27]}  Rbxe3 {[%clk 0:01:23]} 25. Rxe3 {[%clk 0:02:26]}  dxe3 {[%clk 0:01:23]} 26. Re2 {[%clk 0:02:26]}  Rc8 {[%clk 0:01:17]} 27. Ne5 {[%clk 0:02:26]}  f5 {[%clk 0:01:10]} 28. g3 {[%clk 0:02:26]}  g5 {[%clk 0:01:07]} 29. a4 {[%clk 0:02:09]}  f4 {[%clk 0:01:07]} 30. a5 {[%clk 0:02:07]}  Re8 {[%clk 0:01:01]} 31. gxf4 {[%clk 0:02:06]}  gxf4 {[%clk 0:01:00]} 32. Nf3 {[%clk 0:02:06]}  Rc8 {[%clk 0:00:47]} 33. a6 {[%clk 0:02:05]}  Rc6 {[%clk 0:00:43]} 34. Kb5 {[%clk 0:02:04]}  Rc8 {[%clk 0:00:34]} 35. a7 {[%clk 0:02:04]}  Bf8 {[%clk 0:00:16]} 36. Kb6 {[%clk 0:01:56]}  Bd6 {[%clk 0:00:15]} 37. Kb7 {[%clk 0:01:56]}  Rc7+ {[%clk 0:00:15]} 38. Ka6 {[%clk 0:01:53]}  Rc6+ {[%clk 0:00:13]} 39. Kb7 {[%clk 0:01:47]}  Rc7+ {[%clk 0:00:13]} 40. Kb6 {[%clk 0:01:48]}  Rc8 {[%clk 0:00:12]} 41. b3 {[%clk 0:01:48]}  Kf7 {[%clk 0:00:11]} 42. Ra2 {[%clk 0:01:47]}  Kf6 {[%clk 0:00:07]} 43. a8=Q {[%clk 0:01:47]}  Rxa8 {[%clk 0:00:08]} 44. Rxa8 {[%clk 0:01:47]}  e2 {[%clk 0:00:08]} 45. Re8 {[%clk 0:01:41]}  Kf5 {[%clk 0:00:06]} 46. Rxe2 {[%clk 0:01:40]}  Kg4 {[%clk 0:00:07]} 47. Rf2 {[%clk 0:01:39]}  Bf8 {[%clk 0:00:03]} 48. Kb5 {[%clk 0:01:38]}  Bg7 {[%clk 0:00:03]} 49. Kc4 {[%clk 0:01:38]}  Bd4 {[%clk 0:00:03]} 50. Nxd4 {[%clk 0:01:38]}  cxd4 {[%clk 0:00:04]} 51. Kxd4 {[%clk 0:01:39]}  f3 {[%clk 0:00:00]} 52. Ke3 {[%clk 0:01:39]} 1-0

[Event "November 21 Late 2023"]
[Site "https://www.chess.com"]
[Date "2023.11.21"]
[Round "3"]
[White "Feliz Dotel, Dewar Bienvenido"]
[Black "Hajiyev, Kanan"]
[Result "0-1"]
[Board "116"]
[TimeControl "180+1"]
[WhiteFideId "6402801"]
[BlackFideId "13404148"]
[WhiteElo "2069"]
[BlackElo "2102"]
[WhiteTeam "DOM"]
[BlackTeam "AZE"]
[WhiteClock "0:00:00"]
[BlackClock "0:00:05"]

1. d4 {[%clk 0:02:59]}  d5 {[%clk 0:03:00]} 2. e3 {[%clk 0:02:59]}  c5 {[%clk 0:03:00]} 3. dxc5 {[%clk 0:02:59]}  Nc6 {[%clk 0:03:00]} 4. a3 {[%clk 0:02:57]}  a5 {[%clk 0:03:00]} 5. c4 {[%clk 0:02:56]}  d4 {[%clk 0:02:58]} 6. Nf3 {[%clk 0:02:53]}  e5 {[%clk 0:02:58]} 7. exd4 {[%clk 0:02:53]}  e4 {[%clk 0:02:58]} 8. Ng5 {[%clk 0:01:59]}  Qxd4 {[%clk 0:02:52]} 9. Nc3 {[%clk 0:01:40]}  Qxd1+ {[%clk 0:02:34]} 10. Kxd1 {[%clk 0:01:32]}  f5 {[%clk 0:02:35]} 11. Nd5 {[%clk 0:01:29]}  Ra7 {[%clk 0:01:58]} 12. Nc7+ {[%clk 0:01:26]}  Kd7 {[%clk 0:01:47]} 13. Nb5 {[%clk 0:01:26]}  Nf6 {[%clk 0:01:31]} 14. Nxa7 {[%clk 0:01:18]}  Nxa7 {[%clk 0:01:32]} 15. Nf7 {[%clk 0:01:18]}  Rg8 {[%clk 0:01:31]} 16. Ne5+ {[%clk 0:01:18]}  Ke6 {[%clk 0:01:31]} 17. Bf4 {[%clk 0:01:12]}  g5 {[%clk 0:01:31]} 18. Bd2 {[%clk 0:00:50]}  Kxe5 {[%clk 0:01:30]} 19. Bxa5 {[%clk 0:00:50]}  Bxc5 {[%clk 0:01:28]} 20. Kc2 {[%clk 0:00:46]}  Bxf2 {[%clk 0:01:26]} 21. Rd1 {[%clk 0:00:45]}  Nc6 {[%clk 0:01:24]} 22. Bc3+ {[%clk 0:00:45]}  Bd4 {[%clk 0:01:24]} 23. b4 {[%clk 0:00:44]}  Bxc3 {[%clk 0:01:23]} 24. Kxc3 {[%clk 0:00:45]}  Be6 {[%clk 0:01:08]} 25. b5 {[%clk 0:00:36]}  Na5 {[%clk 0:01:02]} 26. Kb4 {[%clk 0:00:32]}  b6 {[%clk 0:01:02]} 27. Be2 {[%clk 0:00:28]}  Rc8 {[%clk 0:00:58]} 28. Rc1 {[%clk 0:00:27]}  Nb7 {[%clk 0:00:39]} 29. Rhd1 {[%clk 0:00:23]}  Nc5 {[%clk 0:00:38]} 30. a4 {[%clk 0:00:21]}  Ra8 {[%clk 0:00:38]} 31. Ra1 {[%clk 0:00:19]}  f4 {[%clk 0:00:38]} 32. a5 {[%clk 0:00:19]}  Nfd7 {[%clk 0:00:13]} 33. axb6 {[%clk 0:00:16]}  Rb8 {[%clk 0:00:14]} 34. Rxd7 {[%clk 0:00:09]}  Nxd7 {[%clk 0:00:11]} 35. c5 {[%clk 0:00:10]}  Nxb6 {[%clk 0:00:11]} 36. cxb6 {[%clk 0:00:09]}  Rxb6 {[%clk 0:00:11]} 37. Ra6 {[%clk 0:00:10]}  Rb8 {[%clk 0:00:11]} 38. b6 {[%clk 0:00:09]}  g4 {[%clk 0:00:11]} 39. Kc5 {[%clk 0:00:08]}  f3 {[%clk 0:00:11]} 40. gxf3 {[%clk 0:00:08]}  gxf3 {[%clk 0:00:11]} 41. Bf1 {[%clk 0:00:09]}  Rc8+ {[%clk 0:00:11]} 42. Kb4 {[%clk 0:00:08]}  Rc1 {[%clk 0:00:12]} 43. Ra5+ {[%clk 0:00:08]}  Kf4 {[%clk 0:00:12]} 44. Rb5 {[%clk 0:00:08]}  Rxf1 {[%clk 0:00:09]} 45. b7 {[%clk 0:00:08]}  Rb1+ {[%clk 0:00:10]} 46. Kc5 {[%clk 0:00:08]}  Rxb5+ {[%clk 0:00:11]} 47. Kxb5 {[%clk 0:00:09]}  Bd5 {[%clk 0:00:11]} 48. b8=Q+ {[%clk 0:00:08]}  Ke3 {[%clk 0:00:12]} 49. Qb6+ {[%clk 0:00:07]}  Ke2 {[%clk 0:00:12]} 50. Qd4 {[%clk 0:00:06]}  f2 {[%clk 0:00:08]} 51. Qb2+ {[%clk 0:00:04]}  Kf3 {[%clk 0:00:06]} 52. Qc3+ {[%clk 0:00:03]}  e3 {[%clk 0:00:05]} 53. Qf6+ {[%clk 0:00:04]}  Kg2 {[%clk 0:00:04]} 54. Qg5+ {[%clk 0:00:03]}  Kh1 {[%clk 0:00:04]} 55. Qf4 {[%clk 0:00:03]}  Bg2 {[%clk 0:00:04]} 56. Qxe3 {[%clk 0:00:01]}  f1=Q+ {[%clk 0:00:04]} 57. Kc5 {[%clk 0:00:01]}  Qf3 {[%clk 0:00:05]} 58. Qc1+ {[%clk 0:00:00]}  Kxh2 {[%clk 0:00:05]} 0-1

[Event "November 21 Late 2023"]
[Site "https://www.chess.com"]
[Date "2023.11.21"]
[Round "3"]
[White "Thake, Conrad"]
[Black "Horak, Martin"]
[Result "0-1"]
[Board "121"]
[TimeControl "180+1"]
[WhiteFideId "5602947"]
[BlackFideId "367095"]
[WhiteElo "1685"]
[BlackElo "2091"]
[WhiteTeam "MLT"]
[BlackTeam "CZE"]
[WhiteClock "0:00:35"]
[BlackClock "0:00:57"]

1. e4 {[%clk 0:03:00]}  c5 {[%clk 0:02:59]} 2. Nf3 {[%clk 0:02:59]}  Nc6 {[%clk 0:03:00]} 3. d4 {[%clk 0:02:59]}  cxd4 {[%clk 0:03:00]} 4. Nxd4 {[%clk 0:02:59]}  g6 {[%clk 0:03:01]} 5. Be3 {[%clk 0:02:56]}  Bg7 {[%clk 0:03:01]} 6. c4 {[%clk 0:02:55]}  Qb6 {[%clk 0:02:59]} 7. Nxc6 {[%clk 0:02:36]}  Qxc6 {[%clk 0:02:26]} 8. Qc2 {[%clk 0:02:23]}  Nf6 {[%clk 0:02:17]} 9. Nc3 {[%clk 0:02:19]}  Ng4 {[%clk 0:02:16]} 10. Bf4 {[%clk 0:01:52]}  O-O {[%clk 0:02:11]} 11. Be2 {[%clk 0:01:51]}  d6 {[%clk 0:02:08]} 12. h3 {[%clk 0:01:46]}  Ne5 {[%clk 0:02:08]} 13. Nd5 {[%clk 0:01:38]}  Re8 {[%clk 0:02:08]} 14. O-O {[%clk 0:01:29]}  e6 {[%clk 0:02:08]} 15. Nb4 {[%clk 0:01:25]}  Qc7 {[%clk 0:01:59]} 16. Rac1 {[%clk 0:01:20]}  b6 {[%clk 0:01:59]} 17. Nd3 {[%clk 0:01:18]}  Nc6 {[%clk 0:01:48]} 18. a3 {[%clk 0:01:17]}  Nd4 {[%clk 0:01:48]} 19. Qd2 {[%clk 0:01:16]}  Nb3 {[%clk 0:01:48]} 20. Qb4 {[%clk 0:01:13]}  Nxc1 {[%clk 0:01:46]} 21. Bxd6 {[%clk 0:01:13]}  Nxe2+ {[%clk 0:01:46]} 22. Kh1 {[%clk 0:01:12]}  Qc6 {[%clk 0:01:40]} 23. Re1 {[%clk 0:01:11]}  Nd4 {[%clk 0:01:19]} 24. Ne5 {[%clk 0:00:56]}  Qb7 {[%clk 0:01:19]} 25. Qc3 {[%clk 0:00:53]}  Nc6 {[%clk 0:01:18]} 26. f4 {[%clk 0:00:49]}  Nxe5 {[%clk 0:01:18]} 27. fxe5 {[%clk 0:00:48]}  Bd7 {[%clk 0:01:14]} 28. b4 {[%clk 0:00:48]}  Bc6 {[%clk 0:01:14]} 29. Qf3 {[%clk 0:00:46]}  b5 {[%clk 0:01:00]} 30. c5 {[%clk 0:00:46]}  a5 {[%clk 0:01:00]} 31. h4 {[%clk 0:00:41]}  axb4 {[%clk 0:01:00]} 32. axb4 {[%clk 0:00:42]}  Ra4 {[%clk 0:01:00]} 33. Qc3 {[%clk 0:00:41]}  Bxe4 {[%clk 0:00:59]} 34. Qe3 {[%clk 0:00:36]}  Bxg2+ {[%clk 0:00:57]} 35. Kg1 {[%clk 0:00:35]} 0-1